[Event "Titled Tuesday Blitz November 07 Late 2023"]
[White "Su, Dion"]
[Black "Ward, Ieuan C"]
[WhiteFideId "2029731"]
[BlackFideId "406627"]
[WhiteElo "2415"]
[BlackElo "2339"]
[Result "1-0"]
[Round "8"]
[TimeControl "180+1"]
[Date "2023.11.07"]
[WhiteClock "0:02:38"]
[BlackClock "0:01:56"]
[Board "94"]

1. e4 {[%clk 0:03:00]}  e5 {[%clk 0:02:57]} 2. Nf3 {[%clk 0:03:00]}  Nc6 {[%clk 0:02:57]} 3. Bb5 {[%clk 0:03:01]}  a6 {[%clk 0:02:56]} 4. Ba4 {[%clk 0:03:01]}  Nf6 {[%clk 0:02:55]} 5. d3 {[%clk 0:03:00]}  b5 {[%clk 0:02:55]} 6. Bb3 {[%clk 0:03:00]}  Be7 {[%clk 0:02:53]} 7. c3 {[%clk 0:03:00]}  O-O {[%clk 0:02:47]} 8. O-O {[%clk 0:03:00]}  d5 {[%clk 0:02:42]} 9. Qe2 {[%clk 0:02:46]}  dxe4 {[%clk 0:02:35]} 10. dxe4 {[%clk 0:02:45]}  Bg4 {[%clk 0:02:33]} 11. Rd1 {[%clk 0:02:44]}  Qe8 {[%clk 0:02:22]} 12. Nbd2 {[%clk 0:02:44]}  Na5 {[%clk 0:02:15]} 13. Bc2 {[%clk 0:02:44]}  Bc5 {[%clk 0:01:56]} 14. b4 {[%clk 0:02:38]} 1-0


[Site "https://www.chess.com"]

[Event "Titled Tuesday Blitz November 07 Late 2023"]
[White "Gerbelli Neto, Eduardo"]
[Black "Quirke, Jeffrey"]
[WhiteFideId "2103281"]
[BlackFideId "2013029"]
[WhiteElo "2386"]
[BlackElo "2259"]
[Result "0-1"]
[Round "8"]
[TimeControl "180+1"]
[Date "2023.11.07"]
[WhiteClock "0:00:12"]
[BlackClock "0:00:17"]
[Board "98"]

1. e4 {[%clk 0:03:00]}  e6 {[%clk 0:02:59]} 2. d4 {[%clk 0:03:00]}  d5 {[%clk 0:02:57]} 3. Nc3 {[%clk 0:03:00]}  Nf6 {[%clk 0:02:57]} 4. e5 {[%clk 0:03:00]}  Nfd7 {[%clk 0:02:57]} 5. Nf3 {[%clk 0:03:00]}  c5 {[%clk 0:02:58]} 6. dxc5 {[%clk 0:03:01]}  Bxc5 {[%clk 0:02:56]} 7. Bd3 {[%clk 0:03:01]}  Nc6 {[%clk 0:02:57]} 8. Bf4 {[%clk 0:03:00]}  h6 {[%clk 0:02:51]} 9. O-O {[%clk 0:03:00]}  g5 {[%clk 0:02:34]} 10. Bg3 {[%clk 0:03:00]}  g4 {[%clk 0:02:34]} 11. Ne1 {[%clk 0:02:36]}  Ndxe5 {[%clk 0:02:29]} 12. Bb5 {[%clk 0:02:33]}  Bd7 {[%clk 0:02:08]} 13. Qe2 {[%clk 0:02:32]}  Qf6 {[%clk 0:01:48]} 14. Bxc6 {[%clk 0:02:31]}  Nxc6 {[%clk 0:01:37]} 15. Nxd5 {[%clk 0:02:31]}  Qg6 {[%clk 0:01:31]} 16. Nc7+ {[%clk 0:02:28]}  Ke7 {[%clk 0:01:26]} 17. Nxa8 {[%clk 0:02:24]}  Rxa8 {[%clk 0:01:26]} 18. Nd3 {[%clk 0:02:24]}  Bd4 {[%clk 0:01:20]} 19. Nf4 {[%clk 0:02:15]}  Qf5 {[%clk 0:01:17]} 20. c3 {[%clk 0:02:14]}  Bf6 {[%clk 0:01:14]} 21. Rad1 {[%clk 0:02:10]}  Ne5 {[%clk 0:01:01]} 22. Rfe1 {[%clk 0:01:55]}  Bc6 {[%clk 0:00:58]} 23. Qd2 {[%clk 0:01:32]}  Kf8 {[%clk 0:00:54]} 24. Qd6+ {[%clk 0:01:27]}  Kg8 {[%clk 0:00:51]} 25. Nxe6 {[%clk 0:01:21]}  Nf3+ {[%clk 0:00:45]} 26. Kh1 {[%clk 0:01:02]}  Nxe1 {[%clk 0:00:45]} 27. Rxe1 {[%clk 0:01:00]}  fxe6 {[%clk 0:00:44]} 28. Qxe6+ {[%clk 0:00:59]}  Qxe6 {[%clk 0:00:44]} 29. Rxe6 {[%clk 0:01:00]}  Kf7 {[%clk 0:00:43]} 30. Re1 {[%clk 0:00:57]}  Rd8 {[%clk 0:00:41]} 31. Bf4 {[%clk 0:00:58]}  h5 {[%clk 0:00:40]} 32. Kg1 {[%clk 0:00:58]}  Re8 {[%clk 0:00:38]} 33. Rd1 {[%clk 0:00:55]}  Re2 {[%clk 0:00:38]} 34. Bc1 {[%clk 0:00:49]}  Be7 {[%clk 0:00:30]} 35. Be3 {[%clk 0:00:25]}  Rxb2 {[%clk 0:00:25]} 36. Bxa7 {[%clk 0:00:25]}  Rxa2 {[%clk 0:00:24]} 37. Bd4 {[%clk 0:00:25]}  Bf6 {[%clk 0:00:22]} 38. Kf1 {[%clk 0:00:20]}  Bxd4 {[%clk 0:00:21]} 39. cxd4 {[%clk 0:00:19]}  Bd5 {[%clk 0:00:20]} 40. h3 {[%clk 0:00:18]}  gxh3 {[%clk 0:00:19]} 41. gxh3 {[%clk 0:00:19]}  b5 {[%clk 0:00:16]} 42. Rb1 {[%clk 0:00:17]}  Bc4+ {[%clk 0:00:16]} 43. Kg1 {[%clk 0:00:18]}  Ke6 {[%clk 0:00:17]} 44. Re1+ {[%clk 0:00:17]}  Kd5 {[%clk 0:00:17]} 45. Re5+ {[%clk 0:00:18]}  Kxd4 {[%clk 0:00:18]} 46. Rxh5 {[%clk 0:00:19]}  b4 {[%clk 0:00:17]} 47. Rh8 {[%clk 0:00:19]}  b3 {[%clk 0:00:17]} 48. Rd8+ {[%clk 0:00:20]}  Kc3 {[%clk 0:00:17]} 49. Rb8 {[%clk 0:00:18]}  b2 {[%clk 0:00:16]} 50. Kh2 {[%clk 0:00:12]}  Bd3 {[%clk 0:00:17]} 0-1


[Site "https://www.chess.com"]

[Event "Titled Tuesday Blitz November 07 Late 2023"]
[White "Zampronha, Wladimir Camilo"]
[Black "Yushko, Olga"]
[WhiteFideId "2103087"]
[BlackFideId "14114500"]
[WhiteElo "2308"]
[BlackElo "2116"]
[Result "1-0"]
[Round "8"]
[TimeControl "180+1"]
[Date "2023.11.07"]
[WhiteClock "0:01:55"]
[BlackClock "0:01:21"]
[Board "105"]

1. e4 {[%clk 0:03:00]}  e6 {[%clk 0:02:59]} 2. d4 {[%clk 0:03:00]}  d5 {[%clk 0:02:59]} 3. Nc3 {[%clk 0:03:00]}  Nf6 {[%clk 0:03:00]} 4. e5 {[%clk 0:03:01]}  Nfd7 {[%clk 0:03:00]} 5. f4 {[%clk 0:03:02]}  c5 {[%clk 0:03:00]} 6. Nf3 {[%clk 0:03:02]}  Nc6 {[%clk 0:03:01]} 7. Be3 {[%clk 0:03:03]}  Qb6 {[%clk 0:03:01]} 8. Na4 {[%clk 0:03:01]}  Qa5+ {[%clk 0:03:01]} 9. c3 {[%clk 0:03:01]}  cxd4 {[%clk 0:03:01]} 10. b4 {[%clk 0:03:01]}  Qd8 {[%clk 0:03:01]} 11. Nxd4 {[%clk 0:02:59]}  Nxd4 {[%clk 0:03:02]} 12. Bxd4 {[%clk 0:03:00]}  Be7 {[%clk 0:03:02]} 13. Bd3 {[%clk 0:03:00]}  O-O {[%clk 0:03:02]} 14. O-O {[%clk 0:03:00]}  f6 {[%clk 0:03:02]} 15. Qe2 {[%clk 0:02:50]}  Qc7 {[%clk 0:02:58]} 16. Kh1 {[%clk 0:02:44]}  Re8 {[%clk 0:02:37]} 17. Bxh7+ {[%clk 0:02:32]}  Kxh7 {[%clk 0:02:33]} 18. Qh5+ {[%clk 0:02:31]}  Kg8 {[%clk 0:02:30]} 19. Qxe8+ {[%clk 0:02:32]}  Nf8 {[%clk 0:02:29]} 20. exf6 {[%clk 0:02:27]}  Bxf6 {[%clk 0:02:24]} 21. Bxf6 {[%clk 0:02:26]}  Bd7 {[%clk 0:02:24]} 22. Qxa8 {[%clk 0:02:19]}  gxf6 {[%clk 0:02:18]} 23. Qxa7 {[%clk 0:02:16]}  Ng6 {[%clk 0:02:11]} 24. Nc5 {[%clk 0:02:14]}  Bb5 {[%clk 0:02:09]} 25. Qa5 {[%clk 0:02:06]}  Qc6 {[%clk 0:01:55]} 26. Qd8+ {[%clk 0:02:04]}  Kg7 {[%clk 0:01:52]} 27. f5 {[%clk 0:02:05]}  Bxf1 {[%clk 0:01:42]} 28. fxg6 {[%clk 0:02:01]}  Be2 {[%clk 0:01:34]} 29. Qd7+ {[%clk 0:01:58]}  Kxg6 {[%clk 0:01:25]} 30. Qxc6 {[%clk 0:01:57]}  bxc6 {[%clk 0:01:26]} 31. a4 {[%clk 0:01:57]}  e5 {[%clk 0:01:24]} 32. a5 {[%clk 0:01:56]}  d4 {[%clk 0:01:24]} 33. cxd4 {[%clk 0:01:55]}  exd4 {[%clk 0:01:21]} 34. a6 {[%clk 0:01:55]} 1-0


[Site "https://www.chess.com"]

[Event "Titled Tuesday Blitz November 07 Late 2023"]
[White "De Souza, Cristiano Gomes"]
[Black "Oliveira, Tiago Batista"]
[WhiteFideId "2151758"]
[BlackFideId "2108291"]
[WhiteElo "2276"]
[BlackElo "2066"]
[Result "0-1"]
[Round "8"]
[TimeControl "180+1"]
[Date "2023.11.07"]
[WhiteClock "0:00:36"]
[BlackClock "0:00:52"]
[Board "108"]

1. d4 {[%clk 0:03:00]}  Nf6 {[%clk 0:02:49]} 2. c4 {[%clk 0:02:58]}  g6 {[%clk 0:02:50]} 3. Nf3 {[%clk 0:02:57]}  Bg7 {[%clk 0:02:49]} 4. Nc3 {[%clk 0:02:57]}  d5 {[%clk 0:02:48]} 5. Bf4 {[%clk 0:02:57]}  O-O {[%clk 0:02:41]} 6. e3 {[%clk 0:02:57]}  c5 {[%clk 0:02:40]} 7. dxc5 {[%clk 0:02:53]}  Qa5 {[%clk 0:02:39]} 8. Rc1 {[%clk 0:02:49]}  dxc4 {[%clk 0:02:34]} 9. Bxc4 {[%clk 0:02:47]}  Qxc5 {[%clk 0:02:35]} 10. Nb5 {[%clk 0:02:47]}  Qb4+ {[%clk 0:02:32]} 11. Kf1 {[%clk 0:02:46]}  Nc6 {[%clk 0:02:27]} 12. a3 {[%clk 0:02:43]}  Qa5 {[%clk 0:02:26]} 13. Nc7 {[%clk 0:02:26]}  e5 {[%clk 0:01:57]} 14. Nxe5 {[%clk 0:01:55]}  Nxe5 {[%clk 0:01:44]} 15. Nxa8 {[%clk 0:01:43]}  Nxc4 {[%clk 0:01:37]} 16. Nc7 {[%clk 0:01:31]}  Nxb2 {[%clk 0:01:12]} 17. Qb3 {[%clk 0:01:18]}  Ne4 {[%clk 0:01:02]} 18. Qb5 {[%clk 0:00:36]}  Qd2 {[%clk 0:00:52]} 0-1


[Site "https://www.chess.com"]

[Event "Titled Tuesday Blitz November 07 Late 2023"]
[White "Tokat, Nehir"]
[Black "Vargas, Mauricio"]
[WhiteFideId "34557555"]
[BlackFideId "4404572"]
[WhiteElo "2203"]
[BlackElo "1864"]
[Result "1-0"]
[Round "8"]
[TimeControl "180+1"]
[Date "2023.11.07"]
[WhiteClock "0:00:08"]
[BlackClock "0:00:00"]
[Board "109"]

1. d4 {[%clk 0:03:00]}  d5 {[%clk 0:02:57]} 2. c4 {[%clk 0:03:00]}  c6 {[%clk 0:02:57]} 3. Nf3 {[%clk 0:02:59]}  e6 {[%clk 0:02:57]} 4. e3 {[%clk 0:02:59]}  Bd6 {[%clk 0:02:56]} 5. Nc3 {[%clk 0:03:00]}  Nf6 {[%clk 0:02:56]} 6. Bd3 {[%clk 0:03:01]}  Nbd7 {[%clk 0:02:56]} 7. O-O {[%clk 0:03:01]}  dxc4 {[%clk 0:02:56]} 8. Bxc4 {[%clk 0:03:02]}  O-O {[%clk 0:02:56]} 9. e4 {[%clk 0:02:59]}  Bc7 {[%clk 0:02:52]} 10. a3 {[%clk 0:02:57]}  e5 {[%clk 0:02:50]} 11. d5 {[%clk 0:02:56]}  cxd5 {[%clk 0:02:37]} 12. exd5 {[%clk 0:02:57]}  e4 {[%clk 0:02:35]} 13. Ng5 {[%clk 0:02:43]}  Ne5 {[%clk 0:02:32]} 14. Ba2 {[%clk 0:02:35]}  Qd6 {[%clk 0:02:31]} 15. g3 {[%clk 0:02:21]}  Bf5 {[%clk 0:02:25]} 16. Nb5 {[%clk 0:02:12]}  Qd7 {[%clk 0:01:48]} 17. Nxc7 {[%clk 0:02:08]}  Qxc7 {[%clk 0:01:46]} 18. Bf4 {[%clk 0:01:57]}  h6 {[%clk 0:01:45]} 19. d6 {[%clk 0:01:56]}  Qc5 {[%clk 0:01:26]} 20. b4 {[%clk 0:01:36]}  Qb5 {[%clk 0:01:21]} 21. a4 {[%clk 0:01:28]}  Qe8 {[%clk 0:01:07]} 22. Bxe5 {[%clk 0:01:11]}  Qxe5 {[%clk 0:01:04]} 23. Nxf7 {[%clk 0:01:06]}  Rxf7 {[%clk 0:01:02]} 24. Bxf7+ {[%clk 0:01:05]}  Kxf7 {[%clk 0:01:02]} 25. Rc1 {[%clk 0:01:03]}  Rd8 {[%clk 0:00:53]} 26. Rc7+ {[%clk 0:01:03]}  Rd7 {[%clk 0:00:51]} 27. Qb3+ {[%clk 0:00:47]}  Be6 {[%clk 0:00:49]} 28. Rxd7+ {[%clk 0:00:36]}  Nxd7 {[%clk 0:00:44]} 29. Qe3 {[%clk 0:00:35]}  Nf6 {[%clk 0:00:29]} 30. Qxa7 {[%clk 0:00:32]}  Bd5 {[%clk 0:00:21]} 31. Qc5 {[%clk 0:00:17]}  Nd7 {[%clk 0:00:15]} 32. Qc7 {[%clk 0:00:16]}  Ke6 {[%clk 0:00:15]} 33. Re1 {[%clk 0:00:15]}  Qxd6 {[%clk 0:00:13]} 34. Qc3 {[%clk 0:00:13]}  Ne5 {[%clk 0:00:09]} 35. Kg2 {[%clk 0:00:10]}  e3+ {[%clk 0:00:08]} 36. Kf1 {[%clk 0:00:09]}  exf2 {[%clk 0:00:02]} 37. Kxf2 {[%clk 0:00:10]}  Kf5 {[%clk 0:00:02]} 38. Qc2+ {[%clk 0:00:09]}  Ke6 {[%clk 0:00:01]} 39. Qg6+ {[%clk 0:00:08]}  Kd7 {[%clk 0:00:01]} 40. Qxg7+ {[%clk 0:00:08]}  Kc6 {[%clk 0:00:00]} 41. Qxe5 {[%clk 0:00:08]} 1-0


[Site "https://www.chess.com"]

[Event "Titled Tuesday Blitz November 07 Late 2023"]
[White "Nita, Lucian"]
[Black "Ghosh, Chanchal Kumer"]
[WhiteFideId "1206923"]
[BlackFideId "10201858"]
[WhiteElo "2307"]
[BlackElo "2065"]
[Result "1/2-1/2"]
[Round "8"]
[TimeControl "180+1"]
[Date "2023.11.07"]
[WhiteClock "0:00:52"]
[BlackClock "0:00:08"]
[Board "111"]

1. e4 {[%clk 0:03:00]}  c5 {[%clk 0:02:58]} 2. d3 {[%clk 0:03:00]}  d6 {[%clk 0:02:57]} 3. Nf3 {[%clk 0:03:00]}  e6 {[%clk 0:02:57]} 4. Be2 {[%clk 0:03:01]}  Nc6 {[%clk 0:02:57]} 5. O-O {[%clk 0:03:01]}  Nf6 {[%clk 0:02:57]} 6. c3 {[%clk 0:03:01]}  Be7 {[%clk 0:02:58]} 7. Nbd2 {[%clk 0:03:01]}  O-O {[%clk 0:02:59]} 8. d4 {[%clk 0:03:01]}  cxd4 {[%clk 0:02:58]} 9. cxd4 {[%clk 0:03:01]}  a6 {[%clk 0:02:59]} 10. Bd3 {[%clk 0:03:01]}  b5 {[%clk 0:02:59]} 11. a3 {[%clk 0:03:01]}  Bb7 {[%clk 0:02:59]} 12. Qe2 {[%clk 0:03:01]}  Rc8 {[%clk 0:02:59]} 13. b4 {[%clk 0:03:00]}  h6 {[%clk 0:02:53]} 14. Bb2 {[%clk 0:03:00]}  Re8 {[%clk 0:02:53]} 15. Rac1 {[%clk 0:02:59]}  Qb6 {[%clk 0:02:51]} 16. h3 {[%clk 0:02:58]}  Nh5 {[%clk 0:02:50]} 17. g3 {[%clk 0:02:57]}  Nf6 {[%clk 0:02:49]} 18. Rfe1 {[%clk 0:02:55]}  Nd7 {[%clk 0:02:39]} 19. Kh2 {[%clk 0:02:53]}  Bf6 {[%clk 0:02:39]} 20. Qe3 {[%clk 0:02:51]}  Nf8 {[%clk 0:02:31]} 21. Nb3 {[%clk 0:02:48]}  Ng6 {[%clk 0:02:28]} 22. h4 {[%clk 0:02:46]}  Rc7 {[%clk 0:02:12]} 23. Re2 {[%clk 0:02:46]}  Rec8 {[%clk 0:02:09]} 24. Rec2 {[%clk 0:02:45]}  Nf8 {[%clk 0:02:03]} 25. g4 {[%clk 0:02:44]}  Nd8 {[%clk 0:01:49]} 26. g5 {[%clk 0:02:42]}  hxg5 {[%clk 0:01:48]} 27. hxg5 {[%clk 0:02:41]}  Be7 {[%clk 0:01:49]} 28. Rxc7 {[%clk 0:02:40]}  Rxc7 {[%clk 0:01:49]} 29. Rh1 {[%clk 0:02:37]}  Ng6 {[%clk 0:01:38]} 30. Kg1 {[%clk 0:02:32]}  e5 {[%clk 0:01:28]} 31. dxe5 {[%clk 0:02:26]}  Qxe3 {[%clk 0:01:28]} 32. fxe3 {[%clk 0:02:26]}  dxe5 {[%clk 0:01:28]} 33. Kf2 {[%clk 0:02:25]}  Rd7 {[%clk 0:01:25]} 34. Ke2 {[%clk 0:02:24]}  Bd6 {[%clk 0:01:18]} 35. Nc5 {[%clk 0:02:23]}  Bxc5 {[%clk 0:01:17]} 36. bxc5 {[%clk 0:02:23]}  Nc6 {[%clk 0:01:18]} 37. Bc2 {[%clk 0:02:17]}  a5 {[%clk 0:01:17]} 38. Bb3 {[%clk 0:02:17]}  a4 {[%clk 0:01:13]} 39. Bd5 {[%clk 0:02:16]}  b4 {[%clk 0:01:09]} 40. axb4 {[%clk 0:02:06]}  Nxb4 {[%clk 0:01:06]} 41. Bxb7 {[%clk 0:02:06]}  Rxb7 {[%clk 0:01:06]} 42. Nxe5 {[%clk 0:02:06]}  Nxe5 {[%clk 0:01:02]} 43. Bxe5 {[%clk 0:02:05]}  a3 {[%clk 0:01:02]} 44. Ra1 {[%clk 0:01:59]}  a2 {[%clk 0:01:00]} 45. c6 {[%clk 0:01:59]}  Rb5 {[%clk 0:00:58]} 46. Rc1 {[%clk 0:01:49]}  Nxc6 {[%clk 0:00:52]} 47. Rxc6 {[%clk 0:01:45]}  Rxe5 {[%clk 0:00:52]} 48. Ra6 {[%clk 0:01:44]}  Rxg5 {[%clk 0:00:43]} 49. Kf3 {[%clk 0:01:42]}  Re5 {[%clk 0:00:37]} 50. Rxa2 {[%clk 0:01:41]}  g6 {[%clk 0:00:37]} 51. Kf4 {[%clk 0:01:40]}  Re6 {[%clk 0:00:37]} 52. e5 {[%clk 0:01:39]}  Kg7 {[%clk 0:00:36]} 53. Ra7 {[%clk 0:01:37]}  Rb6 {[%clk 0:00:33]} 54. e4 {[%clk 0:01:34]}  Rc6 {[%clk 0:00:31]} 55. Rb7 {[%clk 0:01:33]}  Kf8 {[%clk 0:00:28]} 56. Kg5 {[%clk 0:01:31]}  Rc1 {[%clk 0:00:25]} 57. e6 {[%clk 0:01:27]}  Rg1+ {[%clk 0:00:23]} 58. Kf6 {[%clk 0:01:27]}  Rf1+ {[%clk 0:00:21]} 59. Ke5 {[%clk 0:01:25]}  f6+ {[%clk 0:00:18]} 60. Kd6 {[%clk 0:01:25]}  Rd1+ {[%clk 0:00:17]} 61. Kc5 {[%clk 0:01:25]}  Ke8 {[%clk 0:00:16]} 62. Rf7 {[%clk 0:01:23]}  Rf1 {[%clk 0:00:16]} 63. Rg7 {[%clk 0:01:19]}  g5 {[%clk 0:00:15]} 64. e5 {[%clk 0:01:15]}  fxe5 {[%clk 0:00:11]} 65. Kd6 {[%clk 0:01:15]}  Rd1+ {[%clk 0:00:08]} 66. Kxe5 {[%clk 0:01:15]}  Ra1 {[%clk 0:00:07]} 67. Rg8+ {[%clk 0:01:13]}  Ke7 {[%clk 0:00:06]} 68. Rg7+ {[%clk 0:01:13]}  Ke8 {[%clk 0:00:06]} 69. Kf6 {[%clk 0:01:12]}  Rf1+ {[%clk 0:00:05]} 70. Ke5 {[%clk 0:01:12]}  Re1+ {[%clk 0:00:04]} 71. Kf5 {[%clk 0:01:12]}  Rf1+ {[%clk 0:00:03]} 72. Kg4 {[%clk 0:01:06]}  Rg1+ {[%clk 0:00:03]} 73. Kh5 {[%clk 0:01:04]}  Re1 {[%clk 0:00:03]} 74. Kxg5 {[%clk 0:01:02]}  Rxe6 {[%clk 0:00:02]} 75. Kf5 {[%clk 0:01:03]}  Re1 {[%clk 0:00:03]} 76. Rg8+ {[%clk 0:01:02]}  Ke7 {[%clk 0:00:02]} 77. Rg7+ {[%clk 0:01:02]}  Kf8 {[%clk 0:00:02]} 78. Ra7 {[%clk 0:01:02]}  Rf1+ {[%clk 0:00:03]} 79. Ke6 {[%clk 0:01:02]}  Re1+ {[%clk 0:00:03]} 80. Kd5 {[%clk 0:01:01]}  Rd1+ {[%clk 0:00:04]} 81. Ke4 {[%clk 0:01:02]}  Re1+ {[%clk 0:00:04]} 82. Kf3 {[%clk 0:01:02]}  Rf1+ {[%clk 0:00:05]} 83. Ke2 {[%clk 0:01:02]}  Rf7 {[%clk 0:00:05]} 84. Ra8+ {[%clk 0:01:02]}  Kg7 {[%clk 0:00:05]} 85. Ke3 {[%clk 0:01:03]}  Re7+ {[%clk 0:00:05]} 86. Kf4 {[%clk 0:01:03]}  Kf7 {[%clk 0:00:06]} 87. Kf5 {[%clk 0:01:03]}  Rc7 {[%clk 0:00:06]} 88. Ra5 {[%clk 0:01:02]}  Rb7 {[%clk 0:00:07]} 89. Rc5 {[%clk 0:01:02]}  Rd7 {[%clk 0:00:07]} 90. Re5 {[%clk 0:01:01]}  Ra7 {[%clk 0:00:07]} 91. Rb5 {[%clk 0:01:01]}  Rc7 {[%clk 0:00:07]} 92. Kg5 {[%clk 0:01:02]}  Rd7 {[%clk 0:00:07]} 93. Rf5+ {[%clk 0:01:01]}  Kg7 {[%clk 0:00:07]} 94. Re5 {[%clk 0:01:00]}  Rc7 {[%clk 0:00:07]} 95. Rb5 {[%clk 0:00:58]}  Rd7 {[%clk 0:00:07]} 96. Kf5 {[%clk 0:00:55]}  Rc7 {[%clk 0:00:07]} 97. Ke6 {[%clk 0:00:55]}  Ra7 {[%clk 0:00:06]} 98. Rg5+ {[%clk 0:00:55]}  Kh6 {[%clk 0:00:07]} 99. Rb5 {[%clk 0:00:54]}  Kg7 {[%clk 0:00:07]} 100. Kf5 {[%clk 0:00:54]}  Kf7 {[%clk 0:00:06]} 101. Ke5 {[%clk 0:00:53]}  Rc7 {[%clk 0:00:06]} 102. Kd6 {[%clk 0:00:53]}  Rc1 {[%clk 0:00:06]} 103. Rf5+ {[%clk 0:00:53]}  Kg6 {[%clk 0:00:06]} 104. Rf8 {[%clk 0:00:52]}  Kg7 {[%clk 0:00:07]} 105. Ra8 {[%clk 0:00:52]}  Kf7 {[%clk 0:00:07]} 106. Ra7+ {[%clk 0:00:51]}  Kf6 {[%clk 0:00:07]} 107. Ra5 {[%clk 0:00:51]}  Rd1+ {[%clk 0:00:07]} 108. Kc5 {[%clk 0:00:51]}  Re1 {[%clk 0:00:07]} 109. Kd4 {[%clk 0:00:51]}  Rd1+ {[%clk 0:00:07]} 110. Ke3 {[%clk 0:00:50]}  Re1+ {[%clk 0:00:07]} 111. Kf3 {[%clk 0:00:51]}  Rf1+ {[%clk 0:00:07]} 112. Ke3 {[%clk 0:00:51]}  Re1+ {[%clk 0:00:07]} 113. Kd2 {[%clk 0:00:52]}  Re5 {[%clk 0:00:07]} 114. Ra6+ {[%clk 0:00:52]}  Kf5 {[%clk 0:00:08]} 115. Ra8 {[%clk 0:00:53]}  Rd5+ {[%clk 0:00:08]} 116. Ke3 {[%clk 0:00:52]}  Re5+ {[%clk 0:00:09]} 117. Kf3 {[%clk 0:00:52]}  Rc5 {[%clk 0:00:08]} 118. Rh8 {[%clk 0:00:52]}  Kg5 {[%clk 0:00:08]} 119. Rg8+ {[%clk 0:00:51]}  Kf5 {[%clk 0:00:08]} 120. Rf8+ {[%clk 0:00:52]}  Kg5 {[%clk 0:00:08]} 121. Ke4 {[%clk 0:00:52]}  Rc4+ {[%clk 0:00:08]} 122. Kd5 {[%clk 0:00:52]}  Rc1 {[%clk 0:00:08]} 123. Kd4 {[%clk 0:00:52]}  Kg4 {[%clk 0:00:08]} 124. Ke3 {[%clk 0:00:52]}  Kg5 {[%clk 0:00:08]} 1/2-1/2


[Site "https://www.chess.com"]

[Event "Titled Tuesday Blitz November 07 Late 2023"]
[White "katharinareinecke"]
[Black "Smirnov, Timofey"]
[BlackFideId "24176427"]
[WhiteElo "1914"]
[BlackElo "2098"]
[Result "1-0"]
[Round "8"]
[TimeControl "180+1"]
[Date "2023.11.07"]
[WhiteClock "0:00:46"]
[BlackClock "0:00:01"]
[Board "116"]

1. d4 {[%clk 0:03:00]}  d5 {[%clk 0:02:59]} 2. c4 {[%clk 0:02:52]}  c6 {[%clk 0:03:00]} 3. Nf3 {[%clk 0:02:50]}  Nf6 {[%clk 0:02:59]} 4. g3 {[%clk 0:02:50]}  dxc4 {[%clk 0:02:58]} 5. Bg2 {[%clk 0:02:49]}  b5 {[%clk 0:02:54]} 6. O-O {[%clk 0:02:48]}  Bb7 {[%clk 0:02:52]} 7. a4 {[%clk 0:02:46]}  a6 {[%clk 0:02:51]} 8. Ne5 {[%clk 0:02:45]}  Qc7 {[%clk 0:02:22]} 9. b3 {[%clk 0:02:42]}  cxb3 {[%clk 0:02:18]} 10. Qxb3 {[%clk 0:02:42]}  e6 {[%clk 0:02:16]} 11. Ba3 {[%clk 0:02:34]}  Bxa3 {[%clk 0:01:59]} 12. Qxa3 {[%clk 0:02:25]}  Nbd7 {[%clk 0:01:52]} 13. Nxd7 {[%clk 0:02:00]}  Qxd7 {[%clk 0:01:43]} 14. e3 {[%clk 0:01:54]}  Qe7 {[%clk 0:01:36]} 15. Qxe7+ {[%clk 0:01:52]}  Kxe7 {[%clk 0:01:37]} 16. Nc3 {[%clk 0:01:41]}  Nd5 {[%clk 0:01:31]} 17. Ne4 {[%clk 0:01:36]}  f5 {[%clk 0:01:12]} 18. Nc5 {[%clk 0:01:35]}  Rab8 {[%clk 0:01:10]} 19. axb5 {[%clk 0:01:28]}  axb5 {[%clk 0:01:08]} 20. Ra7 {[%clk 0:01:26]}  Kd6 {[%clk 0:00:25]} 21. Bxd5 {[%clk 0:01:23]}  cxd5 {[%clk 0:00:17]} 22. Nxb7+ {[%clk 0:01:23]}  Kc6 {[%clk 0:00:15]} 23. Nc5 {[%clk 0:01:21]}  b4 {[%clk 0:00:14]} 24. Nxe6 {[%clk 0:01:20]}  b3 {[%clk 0:00:12]} 25. Rb1 {[%clk 0:01:17]}  Rhc8 {[%clk 0:00:11]} 26. Ra3 {[%clk 0:01:15]}  b2 {[%clk 0:00:10]} 27. Ra2 {[%clk 0:01:15]}  Kd6 {[%clk 0:00:11]} 28. Raxb2 {[%clk 0:01:05]}  Rxb2 {[%clk 0:00:10]} 29. Rxb2 {[%clk 0:01:04]}  Kxe6 {[%clk 0:00:11]} 30. Rb6+ {[%clk 0:01:01]}  Kf7 {[%clk 0:00:10]} 31. Kg2 {[%clk 0:01:01]}  Rd8 {[%clk 0:00:10]} 32. Rb7+ {[%clk 0:01:00]}  Kf6 {[%clk 0:00:10]} 33. Kf3 {[%clk 0:01:00]}  g6 {[%clk 0:00:10]} 34. h4 {[%clk 0:01:00]}  h5 {[%clk 0:00:10]} 35. Kf4 {[%clk 0:00:59]}  Rd6 {[%clk 0:00:10]} 36. Rb8 {[%clk 0:00:58]}  Kf7 {[%clk 0:00:10]} 37. Rb7+ {[%clk 0:00:58]}  Kf6 {[%clk 0:00:10]} 38. Kf3 {[%clk 0:00:56]}  Re6 {[%clk 0:00:10]} 39. Ke2 {[%clk 0:00:56]}  Rc6 {[%clk 0:00:10]} 40. Kd3 {[%clk 0:00:55]}  Rd6 {[%clk 0:00:11]} 41. Ra7 {[%clk 0:00:55]}  Rb6 {[%clk 0:00:11]} 42. Rd7 {[%clk 0:00:55]}  Ke6 {[%clk 0:00:10]} 43. Rg7 {[%clk 0:00:54]}  Kf6 {[%clk 0:00:10]} 44. Rg8 {[%clk 0:00:54]}  Kf7 {[%clk 0:00:10]} 45. Rd8 {[%clk 0:00:54]}  Ke6 {[%clk 0:00:09]} 46. Rg8 {[%clk 0:00:53]}  Kf7 {[%clk 0:00:10]} 47. Rc8 {[%clk 0:00:53]}  Ke6 {[%clk 0:00:09]} 48. Rc5 {[%clk 0:00:53]}  Rb3+ {[%clk 0:00:08]} 49. Kd2 {[%clk 0:00:52]}  Rb2+ {[%clk 0:00:08]} 50. Rc2 {[%clk 0:00:51]}  Rb3 {[%clk 0:00:07]} 51. Rc6+ {[%clk 0:00:51]}  Kf7 {[%clk 0:00:07]} 52. Rd6 {[%clk 0:00:51]}  Rb5 {[%clk 0:00:07]} 53. Rd7+ {[%clk 0:00:51]}  Ke6 {[%clk 0:00:07]} 54. Ra7 {[%clk 0:00:50]}  Rb2+ {[%clk 0:00:06]} 55. Ke1 {[%clk 0:00:51]}  Rb1+ {[%clk 0:00:07]} 56. Ke2 {[%clk 0:00:51]}  Rb2+ {[%clk 0:00:07]} 57. Kf3 {[%clk 0:00:51]}  Rb6 {[%clk 0:00:06]} 58. Rc7 {[%clk 0:00:46]}  Kd6 {[%clk 0:00:06]} 59. Rg7 {[%clk 0:00:46]}  Rc6 {[%clk 0:00:01]} 60. Rxg6+ {[%clk 0:00:46]}  Kc7 {[%clk 0:00:02]} 61. Rxc6+ {[%clk 0:00:46]}  Kxc6 {[%clk 0:00:03]} 62. Kf4 {[%clk 0:00:46]}  Kd6 {[%clk 0:00:01]} 63. Kxf5 {[%clk 0:00:46]} 1-0


[Site "https://www.chess.com"]